fUSD/lending_fUSD_20251220
["ID","MTS","AMOUNT","RATE_DAILY","PERIOD"]
[399258963,1766212243791,-150.09235231,0.00016973,2]
[399258964,1766212243800,-163.39899626,0.00016973,2]
[399258965,1766212243810,-500.0,0.00016973,2]
[399258966,1766212243819,-500.0,0.00016973,2]
[399258967,1766212243829,-500.0,0.00016973,2]
[399258968,1766212243838,-150.0,0.00016973,2]
[399258969,1766212243847,-150.0,0.00016973,2]
[399258970,1766212243857,-500.0,0.00016986,2]
[399258971,1766212243867,-765.0,0.00016986,2]
[399258972,1766212243877,-519.0,0.00016986,2]
[399258973,1766212243887,-1054.0,0.00016986,2]
[399258974,1766212243896,-1647.70919262,0.0001699,2]
[399258975,1766212243906,-1500.0,0.00016998,2]
[399258976,1766212243916,-1500.0,0.00016998,2]
[399258977,1766212243926,-1527.47643038,0.00016998,2]
[399258978,1766212243936,-500.0,0.00016998,2]
[399258979,1766212243946,-500.0,0.00016998,2]
[399258980,1766212243955,-500.0,0.00016999,2]
[399258981,1766212243965,-500.0,0.00016999,2]
[399258982,1766212243975,-185.21443283,0.00016999,2]
[399258983,1766212243984,-308.45911544,0.00016999,2]
[399258984,1766212243994,-496515.74596377,0.00016999,3]
[399258985,1766212244006,-500.0,0.00016999,2]
[399258986,1766212244016,-500.0,0.00016999,2]
[399258987,1766212244025,-500.0,0.00016999,2]
[399258988,1766212244035,-500.0,0.00016999,2]
[399258989,1766212244044,-500.0,0.00016999,2]
[399258990,1766212244053,-500.0,0.00016999,2]
[399258991,1766212244063,-500.0,0.00016999,2]
[399258992,1766212244073,-500.0,0.00016999,2]
[399258993,1766212244082,-500.0,0.00016999,2]
[399258994,1766212244091,-592.36853989,0.00016999,2]
[399258995,1766212244101,-188.65,0.00017,7]
[399258996,1766212244110,-250.0,0.00017,2]
[399258997,1766212244119,-1606833.11881033,0.00017,2]
[399258998,1766212244579,-500.0,0.00014931,2]
[399258999,1766212244588,-150.0,0.00014931,2]
[399259000,1766212244605,-499.11159905,0.00015068,2]
[399259001,1766212244621,-0.88840095,0.00015068,2]
[399259002,1766212244631,-500.0,0.00015068,2]
[399259003,1766212244641,-150.0,0.00015068,2]
[399259004,1766212244651,-500.0,0.00015205,2]
[399259005,1766212244661,-500.0,0.00015205,2]
[399259006,1766212244671,-500.0,0.00015342,2]
[399259007,1766212244681,-500.0,0.00015342,2]
[399259008,1766212244692,-500.0,0.00015479,2]
[399259009,1766212244702,-500.0,0.00015479,2]
[399259010,1766212244711,-250.62704032,0.00015616,2]
[399259011,1766212244720,-500.0,0.00015616,2]
[399259012,1766212244729,-500.0,0.00015753,2]
[399259013,1766212244738,-500.0,0.0001589,2]
[399259014,1766212244747,-500.0,0.00016027,2]
[399259015,1766212244757,-5322.69506086,0.00017,2]
[399259016,1766212244768,-330540.74523506,0.00017,2]
[399259017,1766212244779,-2432701.52560485,0.00017,2]
[399259018,1766212244804,-500.0,0.00014794,2]
[399259019,1766212244813,-8.28615974,0.00017,2]
[399259032,1766212265127,-282.604,0.00010799,2]
[399259038,1766212274195,-1107.8675,7.945e-05,2]
[399259039,1766212280891,-209.741393,0.00010744,2]
[399259040,1766212287990,-4853.90820882,0.00010799,2]
[399259041,1766212288108,-10000.01,0.00010799,2]
[399259042,1766212294466,-10000.01,0.00010799,2]
[399259043,1766212318913,-158.0012656,0.00010749,2]
[399259044,1766212318966,-9684.0074688,0.00010798,2]
[399259045,1766212339447,-2307.111565,7.945e-05,2]
[399259080,1766212550558,157.23,8.887e-05,2]
[399259081,1766212550966,157.23,9.998e-05,2]
[399259177,1766212892664,160.0,0.000157,15]
[399259178,1766212893681,240.01,0.000145,3]
[399259179,1766212894479,240.01,0.00014,4]
[399259180,1766212895138,160.0,0.000132,13]
[399259182,1766212929222,-208.25,0.0001052,2]
[399259183,1766212929265,-1000.0,0.0001066,2]
[399259184,1766212929307,-237.0,0.0001066,2]
[399259185,1766212929350,-402.4828,0.00010699,2]
[399259186,1766212929391,-2291.7521,0.00010699,2]
[399259187,1766212929432,-633.7498592,0.00010699,2]
[399259188,1766212929473,-153.5404816,0.00010791,2]
[399259189,1766212929864,-146.4595184,0.00010791,2]
[399259190,1766212929906,-1200.0,0.00010791,2]
[399259191,1766212929948,-150.0,0.00010791,2]
[399259192,1766212929989,-200.0,0.00010792,2]
[399259193,1766212930030,-151.0,0.00010792,2]
[399259194,1766212930078,-151.0,0.00010792,2]
[399259195,1766212930124,-151.0,0.00010792,2]
[399259196,1766212930169,-151.0,0.00010792,2]
[399259197,1766212930214,-151.0,0.00010792,2]
[399259198,1766212930258,-151.0,0.00010792,2]
[399259199,1766212930302,-151.0,0.00010792,2]
[399259200,1766212930348,-151.0,0.00010792,2]
[399259201,1766212930394,-151.0,0.00010792,2]
[399259202,1766212930439,-151.0,0.00010792,2]
[399259203,1766212930482,-151.0,0.00010792,2]
[399259204,1766212930523,-151.0,0.00010792,2]
[399259205,1766212930564,-151.0,0.00010792,2]
[399259206,1766212930605,-500.0,0.00010792,2]
[399259207,1766212930647,-151.0,0.00010792,2]
[399259208,1766212930691,-500.0,0.00010792,2]
[399259209,1766212930731,-151.0,0.00010792,2]
[399259210,1766212930988,-500.0,0.00010792,2]
[399259211,1766212931284,-151.0,0.00010792,2]
[399259212,1766212931330,-500.0,0.00010792,2]
[399259213,1766212931372,-151.0,0.00010792,2]
[399259214,1766212931416,-500.0,0.00010792,2]
[399259215,1766212931458,-151.0,0.00010792,2]
[399259216,1766212931500,-500.0,0.00010792,2]
[399259217,1766212931541,-151.0,0.00010792,2]
[399259218,1766212931584,-500.0,0.00010792,2]
[399259219,1766212931632,-151.0,0.00010792,2]
[399259220,1766212931675,-500.0,0.00010792,2]
[399259221,1766212931716,-500.0,0.00010792,2]
[399259222,1766212931758,-500.0,0.00010792,2]
[399259223,1766212933086,-420.6414448,0.00010792,2]
[399259225,1766212938755,-10000.01,0.00010706,2]
[399259230,1766212979821,380.61,5.263e-05,2]
[399259231,1766212980024,380.61,5.54e-05,2]
[399259232,1766212980217,380.61,5.817e-05,2]
[399259233,1766212980402,380.61,6.094e-05,2]
[399259234,1766212980590,380.61,6.371e-05,2]
[399259235,1766212980789,380.61,6.648e-05,2]
[399259236,1766212981102,380.61,6.925e-05,2]
[399259237,1766212981298,380.61,7.202e-05,2]
[399259238,1766212981514,380.61,7.479e-05,2]
[399259239,1766212981724,380.61,7.756e-05,2]
[399259240,1766212981935,380.61,8.033e-05,2]
[399259241,1766212982346,380.61,8.31e-05,2]
[399259242,1766212982539,380.61,8.587e-05,2]
[399259243,1766212982746,380.61,8.864e-05,2]
[399259244,1766212982966,380.61,9.141e-05,2]
[399259245,1766212983166,380.61,9.418e-05,2]
[399259246,1766212983354,380.61,9.695e-05,2]
[399259247,1766212983555,380.61,9.972e-05,2]
[399259248,1766212983861,380.61,0.00010248,2]
[399259252,1766213079804,404.43,0.00010286,2]
[399259254,1766213155562,752.83,0.000103,2]
[399259257,1766213290902,673.42,0.00010959,3]
[399259258,1766213295906,-380.61,0.00010525,2]
[399259259,1766213295954,-300.0,0.00010691,2]
[399259260,1766213296000,-150.0,0.00010691,2]
[399259261,1766213296423,-9949.95,0.00010692,2]
[399259262,1766213296455,-10000.01,0.00010692,2]
[399259263,1766213305583,-10000.01,0.00010692,2]
[399259264,1766213305736,-10000.01,0.00010692,2]
[399259268,1766213431587,-183.850552,0.00010545,2]
[399259269,1766213431597,-5852.60752696,0.00010599,2]
[399259270,1766213431606,-1001.0,0.0001069,2]
[399259271,1766213431616,-211.21104251,0.00010691,2]
[399259272,1766213431626,-239.99570542,0.00010691,2]
[399259273,1766213431635,-500.0,0.00010691,2]
[399259274,1766213431644,-500.0,0.00010691,2]
[399259275,1766213431654,-500.0,0.00010691,2]
[399259276,1766213431664,-500.0,0.00010691,2]
[399259277,1766213431675,-500.0,0.00010691,2]
[399259278,1766213431685,-500.0,0.00010691,2]
[399259279,1766213431695,-500.0,0.00010691,2]
[399259280,1766213431705,-500.0,0.00010691,2]
[399259281,1766213431715,-500.0,0.00010691,2]
[399259282,1766213431724,-169.04489497,0.00010691,2]
[399259283,1766213431733,-410.72796504,0.00010691,2]
[399259284,1766213431743,-250.0,0.00010692,2]
[399259285,1766213431752,-688.41381524,0.00010692,2]
[399259286,1766213431762,-5506.12543629,0.00010692,2]
[399259287,1766213431771,-316.03706124,0.00010692,2]
[399259288,1766213431780,-3892.9648511,0.00010692,2]
[399259289,1766213431789,-119979.57035435,0.00010692,2]
[399259292,1766213437883,-840070.44964565,0.00010692,2]
[399259293,1766213437893,-31879.3408,0.00010699,2]
[399259294,1766213437902,-2500.0,0.00010699,2]
[399259295,1766213437911,-2746.63,0.00010706,2]
[399259296,1766213437920,-4491.2563,0.00010767,2]
[399259297,1766213437931,-1647.70919262,0.00010789,2]
[399259298,1766213437940,-2238.74,0.00010792,2]
[399259300,1766213437949,-500.0,0.00010792,2]
[399259302,1766213437958,-200.0,0.00010792,2]
[399259304,1766213437968,-151.0,0.00010792,2]
[399259306,1766213437977,-151.0,0.00010792,2]
[399259308,1766213437987,-151.0,0.00010792,2]
[399259310,1766213437996,-151.0,0.00010792,2]
[399259312,1766213438005,-151.0,0.00010792,2]
[399259313,1766213438015,-151.0,0.00010792,2]
[399259316,1766213438024,-500.0,0.00010792,2]
[399259317,1766213438034,-500.0,0.00010792,2]
[399259319,1766213438043,-151.0,0.00010792,2]
[399259321,1766213438053,-500.0,0.00010792,2]
[399259323,1766213438063,-151.0,0.00010792,2]
[399259324,1766213438072,-500.0,0.00010792,2]
[399259326,1766213438082,-151.0,0.00010792,2]
[399259328,1766213438091,-500.0,0.00010792,2]
[399259331,1766213438101,-151.0,0.00010792,2]
[399259333,1766213438110,-500.0,0.00010792,2]
[399259334,1766213438120,-500.0,0.00010792,2]
[399259335,1766213438129,-151.0,0.00010792,2]
[399259336,1766213438139,-151.0,0.00010792,2]
[399259337,1766213438149,-500.0,0.00010792,2]
[399259338,1766213438158,-500.0,0.00010792,2]
[399259339,1766213438168,-151.0,0.00010792,2]
[399259340,1766213438177,-500.0,0.00010792,2]
[399259341,1766213438187,-500.0,0.00010792,2]
[399259342,1766213438198,-151.0,0.00010792,2]
[399259343,1766213438207,-200.0,0.00010792,2]
[399259344,1766213438217,-151.0,0.00010792,2]
[399259345,1766213438226,-151.0,0.00010792,2]
[399259346,1766213438235,-151.0,0.00010792,2]
[399259347,1766213438244,-151.0,0.00010792,2]
[399259348,1766213438254,-151.0,0.00010792,2]
[399259349,1766213438263,-200.0,0.00010792,2]
[399259350,1766213438273,-151.0,0.00010792,2]
[399259351,1766213438282,-500.0,0.00010792,2]
[399259352,1766213438291,-500.0,0.00010792,2]
[399259353,1766213438301,-500.0,0.00010792,2]
[399259354,1766213438311,-500.0,0.00010792,2]
[399259355,1766213438320,-500.0,0.00010792,2]
[399259356,1766213438329,-500.0,0.00010792,2]
[399259357,1766213438339,-500.0,0.00010792,2]
[399259358,1766213438348,-500.0,0.00010792,2]
[399259359,1766213438358,-500.0,0.00010792,2]
[399259360,1766213438367,-151.0,0.00010792,2]
[399259361,1766213438376,-500.0,0.00010792,2]
[399259362,1766213438385,-151.0,0.00010792,2]
[399259363,1766213438394,-500.0,0.00010792,2]
[399259364,1766213438404,-500.0,0.00010792,2]
[399259365,1766213438413,-151.0,0.00010792,2]
[399259366,1766213438423,-151.0,0.00010792,2]
[399259367,1766213438432,-151.0,0.00010792,2]
[399259368,1766213438442,-151.0,0.00010792,2]
[399259369,1766213438451,-151.0,0.00010792,2]
[399259370,1766213438460,-151.0,0.00010792,2]
[399259371,1766213438470,-151.0,0.00010792,2]
[399259372,1766213438479,-151.0,0.00010792,2]
[399259373,1766213438488,-151.0,0.00010792,2]
[399259374,1766213438497,-17907.03877627,0.00010798,2]
[399259375,1766213438507,-6346.45,0.00010798,2]
[399259376,1766213438516,-364.437,0.00010798,2]
[399259377,1766213438525,-9999.99,0.00010798,2]
[399259378,1766213438534,-4999.99,0.00010798,2]
[399259379,1766213438544,-9999.99,0.00010798,2]
[399259380,1766213438554,-9999.99,0.00010798,2]
[399259381,1766213438563,-150.99,0.00010798,2]
[399259382,1766213438573,-9999.99,0.00010798,2]
[399259383,1766213438582,-999.99,0.00010798,2]
[399259384,1766213438591,-1574.22,0.00010798,2]
[399259385,1766213438600,-299.99,0.00010798,2]
[399259386,1766213438610,-18136.77,0.00010798,2]
[399259387,1766213438619,-9999.99,0.00010798,2]
[399259388,1766213438628,-8637.47859118,0.00010799,2]
[399259389,1766213438637,-1000.0,0.00010799,2]
[399259390,1766213438647,-150.99,0.00010799,2]
[399259391,1766213438657,-1807.42,0.00010799,2]
[399259392,1766213438667,-78835.58,0.00010799,2]
[399259393,1766213438676,-9999.99,0.00010799,2]
[399259394,1766213438686,-41275.4,0.00010799,2]
[399259395,1766213438695,-21820.75,0.00010799,2]
[399259396,1766213438704,-404.43,0.00010858,2]
[399259397,1766213438714,-150.0,0.00010959,2]
[399259398,1766213438723,-894.91811465,0.00010998,2]
[399259399,1766213438732,-2238.74,0.00011066,2]
[399259400,1766213438741,-500.0,0.00011066,2]
[399259401,1766213438750,-33777.92915214,0.00011099,2]
[399259402,1766213438759,-30793.36066714,0.00011099,2]
[399259403,1766213438769,-157.23,0.00011108,2]
[399259404,1766213438779,-500.0,0.00011125,2]
[399259405,1766213438788,-151.0,0.00011201,2]
[399259406,1766213438797,-314097.41068357,0.00011204,2]
[399259407,1766213438807,-11435.1,0.00011281,2]
[399259408,1766213438816,-344.61,0.00011281,2]
[399259409,1766213438825,-9999.99,0.00011281,2]
[399259410,1766213438834,-33777.9291521,0.00011299,2]
[399259411,1766213438844,-402.06888544,0.00011315,2]
[399259412,1766213438853,-167.44206992,0.00011315,2]
[399259413,1766213438862,-515.04736606,0.00011329,2]
[399259414,1766213438871,-535.29,0.00011339,2]
[399259415,1766213438881,-2238.74,0.0001134,2]
[399259416,1766213438890,-500.0,0.0001134,2]
[399259417,1766213438899,-200.0,0.0001134,2]
[399259418,1766213438908,-200.0,0.0001134,2]
[399259419,1766213438918,-500.0,0.0001134,2]
[399259420,1766213438928,-30793.36066711,0.00011387,2]
[399259421,1766213438937,-404.43,0.00011429,2]
[399259422,1766213438947,-150.0,0.00011445,2]
[399259423,1766213438956,-200.00634622,0.00011564,2]
[399259424,1766213438965,-195.0,0.00011578,2]
[399259425,1766213438975,-195.0,0.00011578,2]
[399259426,1766213438985,-195.0,0.00011578,2]
[399259427,1766213438995,-250.0,0.00011578,2]
[399259428,1766213439004,-195.0,0.00011578,2]
[399259429,1766213439013,-2238.74,0.00011614,2]
[399259430,1766213439023,-195.0,0.00011659,2]
[399259431,1766213439033,-162.0,0.00011728,2]
[399259432,1766213439043,-193.0,0.0001176,2]
[399259433,1766213439053,-250.0,0.0001176,2]
[399259434,1766213439062,-809.98124816,0.00011808,2]
[399259435,1766213439072,-2238.74,0.00011888,2]
[399259436,1766213439081,-200.0,0.00011888,2]
[399259437,1766213439091,-200.0,0.00011888,2]
[399259438,1766213439100,-500.0,0.00011888,2]
[399259439,1766213439109,-235.7337742,0.00011986,2]
[399259440,1766213439119,-1000.0,0.00011992,2]
[399259441,1766213439129,-33777.9291521,0.00011999,2]
[399259442,1766213439138,-404.43,0.00012,2]
[399259443,1766213439148,-24726.66,0.00012055,2]
[399259444,1766213439157,-30793.36066711,0.00012076,2]
[399259445,1766213439167,-29633.07103255,0.00012099,2]
[399259446,1766213439176,-2238.74,0.00012162,2]
[399259447,1766213439186,-157.23,0.00012219,2]
[399259448,1766213439198,-2238.74,0.00012436,2]
[399259449,1766213439211,-200.0,0.00012436,2]
[399259450,1766213439221,-200.0,0.00012436,2]
[399259451,1766213439231,-500.0,0.00012436,2]
[399259452,1766213439240,-404.43,0.00012572,2]
[399259453,1766213439250,-160.47,0.00012697,2]
[399259454,1766213439260,-2238.74,0.0001271,2]
[399259455,1766213439269,-30793.36066711,0.00012765,2]
[399259456,1766213439278,-268.67,0.0001278,2]
[399259457,1766213439288,-2238.74,0.00012984,2]
[399259458,1766213439297,-200.0,0.00012984,2]
[399259459,1766213439306,-200.0,0.00012984,2]
[399259460,1766213439315,-500.0,0.00012984,2]
[399259461,1766213439324,-151.0,0.00013083,2]
[399259462,1766213439333,-151.0,0.00013092,2]
[399259463,1766213439342,-404.43,0.00013143,2]
[399259464,1766213439351,-2238.74,0.00013258,2]
[399259465,1766213439361,-1000.0,0.00013324,2]
[399259466,1766213439371,-157.23,0.0001333,2]
[399259467,1766213439380,-3240.0,0.00013442,2]
[399259468,1766213439390,-30793.36066711,0.00013454,2]
[399259469,1766213439404,-207.4,0.00013531,2]
[399259470,1766213439413,-2238.74,0.00013532,2]
[399259471,1766213439422,-200.0,0.00013532,2]
[399259472,1766213439432,-200.0,0.00013532,2]
[399259473,1766213439441,-500.0,0.00013532,2]
[399259474,1766213439451,-500.0,0.00013698,2]
[399259475,1766213439460,-500.0,0.00013698,2]
[399259476,1766213439469,-500.0,0.00013698,2]
[399259477,1766213439478,-500.0,0.00013698,2]
[399259478,1766213439487,-500.0,0.00013698,2]
[399259479,1766213439496,-500.0,0.00013698,2]
[399259480,1766213439507,-500.0,0.00013698,2]
[399259481,1766213439516,-500.0,0.00013698,2]
[399259482,1766213439526,-500.0,0.00013698,2]
[399259483,1766213439535,-500.0,0.00013698,2]
[399259484,1766213439544,-500.0,0.00013698,2]
[399259485,1766213439553,-500.0,0.00013698,2]
[399259486,1766213439562,-500.0,0.00013698,2]
[399259487,1766213439571,-500.0,0.00013698,2]
[399259488,1766213439581,-500.0,0.00013698,2]
[399259489,1766213439594,-500.0,0.00013698,2]
[399259490,1766213439604,-500.0,0.00013698,2]
[399259491,1766213439613,-500.0,0.00013698,2]
[399259492,1766213439622,-344.15406571,0.00013698,2]
[399259493,1766213439631,-500.0,0.00013698,2]
[399259494,1766213439641,-500.0,0.00013698,2]
[399259495,1766213439650,-500.0,0.00013698,2]
[399259496,1766213439659,-500.0,0.00013698,2]
[399259497,1766213439669,-500.0,0.00013698,2]
[399259498,1766213439679,-500.0,0.00013698,2]
[399259499,1766213439688,-500.0,0.00013698,2]
[399259500,1766213439698,-500.0,0.00013698,2]
[399259501,1766213439707,-500.0,0.00013698,2]
[399259502,1766213439716,-500.0,0.00013698,2]
[399259503,1766213439726,-500.0,0.00013698,2]
[399259504,1766213439735,-500.0,0.00013698,2]
[399259505,1766213439744,-500.0,0.00013698,2]
[399259506,1766213439753,-500.0,0.00013698,2]
[399259507,1766213439764,-500.0,0.00013698,2]
[399259508,1766213439773,-500.0,0.00013698,2]
[399259509,1766213439784,-500.0,0.00013698,2]
[399259510,1766213439798,-500.0,0.00013698,2]
[399259511,1766213439808,-500.0,0.00013698,2]
[399259512,1766213439818,-500.0,0.00013698,2]
[399259513,1766213439828,-500.0,0.00013698,2]
[399259514,1766213439838,-500.0,0.00013698,2]
[399259515,1766213439848,-500.0,0.00013698,2]
[399259516,1766213439857,-500.0,0.00013698,2]
[399259517,1766213439867,-502.93074974,0.00013698,2]
[399259518,1766213439877,-500.0,0.00013698,2]
[399259519,1766213439887,-500.0,0.00013698,2]
[399259520,1766213439897,-500.0,0.00013698,2]
[399259521,1766213439908,-500.0,0.00013698,2]
[399259522,1766213439917,-500.0,0.00013698,2]
[399259523,1766213439927,-500.0,0.00013698,2]
[399259524,1766213439938,-500.0,0.00013698,2]
[399259525,1766213439947,-500.0,0.00013698,2]
[399259526,1766213439958,-500.0,0.00013698,2]
[399259527,1766213439967,-500.0,0.00013698,2]
[399259528,1766213439977,-500.0,0.00013698,2]
[399259529,1766213439990,-500.0,0.00013698,2]
[399259530,1766213440000,-500.0,0.00013698,2]
[399259531,1766213440010,-500.0,0.00013698,2]
[399259532,1766213440021,-520.35217826,0.00013698,2]
[399259533,1766213440032,-531.02,0.00013698,2]
[399259534,1766213440042,-531.02,0.00013698,2]
[399259535,1766213440053,-531.02,0.00013698,2]
[399259536,1766213440062,-531.02,0.00013698,2]
[399259537,1766213440074,-531.02,0.00013698,2]
[399259538,1766213440083,-500.0,0.00013698,2]
[399259539,1766213440093,-500.0,0.00013698,2]
[399259540,1766213440103,-500.0,0.00013698,2]
[399259541,1766213440112,-500.0,0.00013698,2]
[399259542,1766213440121,-335.96353796,0.00013698,2]
[399259543,1766213440130,-500.0,0.00013698,2]
[399259544,1766213440140,-500.0,0.00013698,2]
[399259545,1766213440149,-500.0,0.00013698,2]
[399259546,1766213440159,-500.0,0.00013698,2]
[399259547,1766213440169,-500.0,0.00013698,2]
[399259548,1766213440180,-500.0,0.00013698,2]
[399259549,1766213440194,-552.79617748,0.00013698,2]
[399259551,1766213440205,-500.0,0.00013698,2]
[399259553,1766213440214,-500.0,0.00013698,2]
[399259555,1766213440224,-500.0,0.00013698,2]
[399259557,1766213440234,-500.0,0.00013698,2]
[399259559,1766213440243,-500.0,0.00013698,2]
[399259561,1766213440251,-500.0,0.00013698,2]
[399259563,1766213440261,-487.49534907,0.00013698,2]
[399259565,1766213440270,-500.0,0.00013698,2]
[399259567,1766213440280,-500.0,0.00013698,2]
[399259569,1766213440289,-500.0,0.00013698,2]
[399259571,1766213440299,-500.0,0.00013698,2]
[399259573,1766213440308,-500.0,0.00013698,2]
[399259575,1766213440317,-500.0,0.00013698,2]
[399259577,1766213440327,-500.0,0.00013698,2]
[399259579,1766213440338,-500.0,0.00013698,2]
[399259581,1766213440348,-500.0,0.00013698,2]
[399259583,1766213440358,-500.0,0.00013698,2]
[399259585,1766213440367,-500.0,0.00013698,2]
[399259587,1766213440376,-500.0,0.00013698,2]
[399259589,1766213440386,-500.0,0.00013698,2]
[399259590,1766213440395,-542.9137325,0.00013698,2]
[399259593,1766213440405,-500.0,0.00013698,2]
[399259595,1766213440414,-500.0,0.00013698,2]
[399259597,1766213440423,-500.0,0.00013698,2]
[399259599,1766213440432,-500.0,0.00013698,2]
[399259601,1766213440441,-500.0,0.00013698,2]
[399259603,1766213440450,-500.0,0.00013698,2]
[399259605,1766213440459,-500.0,0.00013698,2]
[399259606,1766213440470,-500.0,0.00013698,2]
[399259609,1766213440480,-500.0,0.00013698,2]
[399259611,1766213440489,-500.0,0.00013698,2]
[399259612,1766213440499,-500.0,0.00013698,2]
[399259613,1766213440509,-500.0,0.00013698,2]
[399259614,1766213440519,-500.0,0.00013698,2]
[399259615,1766213440530,-500.0,0.00013698,2]
[399259616,1766213440539,-500.0,0.00013698,2]
[399259617,1766213440549,-500.0,0.00013698,2]
[399259618,1766213440559,-500.0,0.00013698,2]
[399259619,1766213440577,-500.0,0.00013698,2]
[399259620,1766213440587,-506.44561835,0.00013698,2]
[399259621,1766213440597,-500.0,0.00013698,2]
[399259622,1766213440607,-500.0,0.00013698,2]
[399259623,1766213440616,-260.33789622,0.00013698,2]
[399259624,1766213440625,-500.0,0.00013698,2]
[399259625,1766213440635,-500.0,0.00013698,2]
[399259626,1766213440647,-500.0,0.00013698,2]
[399259627,1766213440657,-500.0,0.00013698,2]
[399259628,1766213440668,-500.0,0.00013698,2]
[399259629,1766213440678,-500.0,0.00013698,2]
[399259630,1766213440687,-500.0,0.00013698,2]
[399259631,1766213440699,-502.26583075,0.00013698,2]
[399259632,1766213440708,-500.0,0.00013698,2]
[399259633,1766213440718,-500.0,0.00013698,2]
[399259634,1766213440728,-500.0,0.00013698,2]
[399259635,1766213440739,-500.0,0.00013698,2]
[399259636,1766213440749,-500.0,0.00013698,2]
[399259637,1766213440758,-500.0,0.00013698,2]
[399259638,1766213440767,-500.0,0.00013698,2]
[399259639,1766213440777,-500.0,0.00013698,2]
[399259640,1766213440786,-360.14623993,0.00013698,2]
[399259641,1766213440795,-500.0,0.00013698,2]
[399259642,1766213440805,-500.0,0.00013698,2]
[399259643,1766213440814,-445.92,0.00013699,2]
[399259644,1766213440824,-13722.89,0.00013699,2]
[399259645,1766213440833,-500.0,0.00013699,2]
[399259646,1766213440843,-500.0,0.00013699,2]
[399259647,1766213440852,-500.0,0.00013699,2]
[399259648,1766213440861,-500.0,0.00013699,2]
[399259649,1766213440872,-500.0,0.00013699,2]
[399259650,1766213440882,-500.0,0.00013699,2]
[399259651,1766213440891,-500.0,0.00013699,2]
[399259652,1766213440900,-500.0,0.00013699,2]
[399259653,1766213440912,-500.0,0.00013699,2]
[399259654,1766213440922,-357.49060572,0.00013699,2]
[399259655,1766213440932,-500.0,0.00013699,2]
[399259656,1766213440942,-500.0,0.00013699,2]
[399259657,1766213440952,-500.0,0.00013699,2]
[399259658,1766213440961,-500.0,0.00013699,2]
[399259659,1766213440970,-500.0,0.00013699,2]
[399259660,1766213440980,-500.0,0.00013699,2]
[399259661,1766213440991,-500.0,0.00013699,2]
[399259662,1766213441001,-500.0,0.00013699,2]
[399259663,1766213441011,-499.72722483,0.00013699,2]
[399259664,1766213441020,-500.0,0.00013699,2]
[399259665,1766213441029,-500.0,0.00013699,2]
[399259666,1766213441039,-500.0,0.00013699,2]
[399259667,1766213441048,-500.0,0.00013699,2]
[399259668,1766213441058,-500.0,0.00013699,2]
[399259669,1766213441067,-500.0,0.00013699,2]
[399259670,1766213441078,-500.0,0.00013699,2]
[399259671,1766213441090,-500.0,0.00013699,2]
[399259672,1766213441100,-500.0,0.00013699,2]
[399259673,1766213441110,-500.0,0.00013699,2]